[Event "December 5 Late 2023"]
[Site "https://www.chess.com"]
[Date "2023.12.05"]
[Round "1"]
[White "Coelho, Ramyres Santana"]
[Black "Tanriverdi, Enes"]
[Result "0-1"]
[Board "130"]
[TimeControl "180+1"]
[WhiteFideId "2120690"]
[BlackFideId "34543279"]
[WhiteElo "2301"]
[BlackElo "2615"]
[WhiteTeam "BRA"]
[BlackTeam "TUR"]
[WhiteClock "0:01:36"]
[BlackClock "0:00:55"]

1. e4 {[%clk 0:03:00]}  c5 {[%clk 0:02:58]} 2. Nf3 {[%clk 0:02:59]}  d6 {[%clk 0:02:56]} 3. d4 {[%clk 0:02:59]}  cxd4 {[%clk 0:02:56]} 4. Nxd4 {[%clk 0:03:00]}  Nf6 {[%clk 0:02:57]} 5. Nc3 {[%clk 0:03:00]}  a6 {[%clk 0:02:56]} 6. f3 {[%clk 0:02:55]}  Nc6 {[%clk 0:02:45]} 7. Be3 {[%clk 0:02:50]}  e6 {[%clk 0:02:41]} 8. Qd2 {[%clk 0:02:45]}  Bd7 {[%clk 0:02:40]} 9. O-O-O {[%clk 0:02:44]}  Rc8 {[%clk 0:02:39]} 10. g4 {[%clk 0:02:44]}  Be7 {[%clk 0:02:36]} 11. Kb1 {[%clk 0:02:44]}  b5 {[%clk 0:02:33]} 12. Nxc6 {[%clk 0:02:43]}  Bxc6 {[%clk 0:02:32]} 13. Bd3 {[%clk 0:02:43]}  O-O {[%clk 0:02:28]} 14. h4 {[%clk 0:02:42]}  b4 {[%clk 0:02:18]} 15. Ne2 {[%clk 0:02:40]}  a5 {[%clk 0:02:18]} 16. Ng3 {[%clk 0:02:39]}  a4 {[%clk 0:02:13]} 17. g5 {[%clk 0:02:35]}  Nd7 {[%clk 0:02:11]} 18. h5 {[%clk 0:02:33]}  b3 {[%clk 0:01:55]} 19. g6 {[%clk 0:02:31]}  Ne5 {[%clk 0:01:49]} 20. gxh7+ {[%clk 0:02:30]}  Kh8 {[%clk 0:01:44]} 21. h6 {[%clk 0:02:30]}  g6 {[%clk 0:01:43]} 22. Bd4 {[%clk 0:02:27]}  Bf6 {[%clk 0:01:39]} 23. f4 {[%clk 0:02:25]}  Nf3 {[%clk 0:01:33]} 24. Bxf6+ {[%clk 0:02:21]}  Qxf6 {[%clk 0:01:34]} 25. Qe3 {[%clk 0:02:19]}  a3 {[%clk 0:01:33]} 26. e5 {[%clk 0:02:11]}  dxe5 {[%clk 0:01:31]} 27. fxe5 {[%clk 0:02:11]}  Qxe5 {[%clk 0:01:27]} 28. Qxe5+ {[%clk 0:02:10]}  Nxe5 {[%clk 0:01:27]} 29. axb3 {[%clk 0:02:10]}  Bxh1 {[%clk 0:01:23]} 30. Rxh1 {[%clk 0:02:09]}  Nxd3 {[%clk 0:01:22]} 31. cxd3 {[%clk 0:02:10]}  axb2 {[%clk 0:01:21]} 32. Kxb2 {[%clk 0:02:11]}  f5 {[%clk 0:01:19]} 33. Re1 {[%clk 0:02:08]}  Rce8 {[%clk 0:01:13]} 34. d4 {[%clk 0:02:05]}  Kxh7 {[%clk 0:01:12]} 35. b4 {[%clk 0:01:58]}  Kxh6 {[%clk 0:01:11]} 36. Kb3 {[%clk 0:01:56]}  g5 {[%clk 0:01:10]} 37. Rh1+ {[%clk 0:01:55]}  Kg6 {[%clk 0:01:10]} 38. b5 {[%clk 0:01:56]}  e5 {[%clk 0:01:05]} 39. d5 {[%clk 0:01:55]}  e4 {[%clk 0:01:05]} 40. Rc1 {[%clk 0:01:52]}  f4 {[%clk 0:01:04]} 41. Rc6+ {[%clk 0:01:50]}  Rf6 {[%clk 0:01:04]} 42. Rxf6+ {[%clk 0:01:42]}  Kxf6 {[%clk 0:01:05]} 43. Nh5+ {[%clk 0:01:43]}  Ke5 {[%clk 0:01:03]} 44. Kb4 {[%clk 0:01:39]}  f3 {[%clk 0:01:00]} 45. b6 {[%clk 0:01:37]}  f2 {[%clk 0:00:58]} 46. Ng3 {[%clk 0:01:36]}  Kxd5 {[%clk 0:00:59]} 47. Kb5 {[%clk 0:01:36]}  e3 {[%clk 0:00:55]} 48. b7 {[%clk 0:01:36]} 0-1

[Event "December 5 Late 2023"]
[Site "https://www.chess.com"]
[Date "2023.12.05"]
[Round "1"]
[White "Mendes Aaron Reeve"]
[Black "Korol, Dimitry"]
[Result "1-0"]
[Board "131"]
[TimeControl "180+1"]
[WhiteFideId "25954938"]
[BlackFideId "14108003"]
[WhiteElo "2615"]
[BlackElo "2299"]
[WhiteTeam "CAN"]
[BlackTeam "UKR"]
[WhiteClock "0:01:58"]
[BlackClock "0:00:00"]

1. c4 {[%clk 0:03:00]}  c5 {[%clk 0:03:00]} 2. e3 {[%clk 0:03:00]}  g6 {[%clk 0:03:00]} 3. Nc3 {[%clk 0:03:00]}  Bg7 {[%clk 0:02:59]} 4. b3 {[%clk 0:02:59]}  Nc6 {[%clk 0:02:55]} 5. Bb2 {[%clk 0:02:59]}  e5 {[%clk 0:02:55]} 6. Nd5 {[%clk 0:02:59]}  Nge7 {[%clk 0:02:54]} 7. h4 {[%clk 0:02:58]}  O-O {[%clk 0:02:40]} 8. h5 {[%clk 0:02:58]}  d6 {[%clk 0:02:37]} 9. Qf3 {[%clk 0:02:57]}  Nxd5 {[%clk 0:02:29]} 10. cxd5 {[%clk 0:02:56]}  Nb4 {[%clk 0:02:29]} 11. Rc1 {[%clk 0:02:47]}  e4 {[%clk 0:02:16]} 12. Qxe4 {[%clk 0:02:19]}  Bf5 {[%clk 0:02:02]} 13. Qf3 {[%clk 0:02:05]}  Bxb2 {[%clk 0:02:00]} 14. Rc4 {[%clk 0:02:05]}  Nd3+ {[%clk 0:00:48]} 15. Bxd3 {[%clk 0:02:04]}  Bxd3 {[%clk 0:00:49]} 16. hxg6 {[%clk 0:01:58]}  Bxc4 {[%clk 0:00:00]} 17. Qh5 {[%clk 0:01:58]} 1-0

[Event "December 5 Late 2023"]
[Site "https://www.chess.com"]
[Date "2023.12.05"]
[Round "1"]
[White "Weisz, Bryan"]
[Black "Poltorak, Sebastian"]
[Result "0-1"]
[Board "132"]
[TimeControl "180+1"]
[WhiteFideId "30934133"]
[BlackFideId "1199498"]
[WhiteElo "2298"]
[BlackElo "2608"]
[WhiteTeam "USA"]
[BlackTeam "POL"]
[WhiteClock "0:00:12"]
[BlackClock "0:00:17"]

1. e3 {[%clk 0:03:00]}  c5 {[%clk 0:02:59]} 2. d4 {[%clk 0:03:00]}  cxd4 {[%clk 0:03:00]} 3. exd4 {[%clk 0:02:59]}  d5 {[%clk 0:03:01]} 4. c4 {[%clk 0:02:59]}  Nf6 {[%clk 0:03:01]} 5. Nc3 {[%clk 0:03:00]}  Nc6 {[%clk 0:03:02]} 6. Nf3 {[%clk 0:03:00]}  Bg4 {[%clk 0:03:02]} 7. cxd5 {[%clk 0:03:01]}  Nxd5 {[%clk 0:03:02]} 8. Qb3 {[%clk 0:03:01]}  Bxf3 {[%clk 0:03:02]} 9. gxf3 {[%clk 0:03:00]}  e6 {[%clk 0:03:03]} 10. Qxb7 {[%clk 0:02:56]}  Nxd4 {[%clk 0:03:03]} 11. Bb5+ {[%clk 0:02:55]}  Nxb5 {[%clk 0:03:03]} 12. Qc6+ {[%clk 0:02:53]}  Ke7 {[%clk 0:03:04]} 13. Qc5+ {[%clk 0:02:50]}  Nd6 {[%clk 0:02:52]} 14. Nxd5+ {[%clk 0:02:47]}  exd5 {[%clk 0:02:52]} 15. O-O {[%clk 0:02:34]}  Qc8 {[%clk 0:01:58]} 16. Qxd5 {[%clk 0:02:21]}  Qb7 {[%clk 0:01:51]} 17. Bg5+ {[%clk 0:01:32]}  Kd7 {[%clk 0:01:34]} 18. Qa5 {[%clk 0:01:19]}  Qb5 {[%clk 0:01:28]} 19. Qd2 {[%clk 0:01:14]}  Re8 {[%clk 0:01:16]} 20. Rfd1 {[%clk 0:01:00]}  Re6 {[%clk 0:01:13]} 21. Bf4 {[%clk 0:00:55]}  Rg6+ {[%clk 0:01:13]} 22. Bg3 {[%clk 0:00:47]}  Be7 {[%clk 0:01:11]} 23. Rac1 {[%clk 0:00:43]}  Rc8 {[%clk 0:01:07]} 24. Rxc8 {[%clk 0:00:37]}  Kxc8 {[%clk 0:01:08]} 25. Kh1 {[%clk 0:00:30]}  Qb7 {[%clk 0:00:58]} 26. Qf4 {[%clk 0:00:22]}  Rf6 {[%clk 0:00:54]} 27. Qc1+ {[%clk 0:00:18]}  Kd8 {[%clk 0:00:53]} 28. Kg1 {[%clk 0:00:15]}  Qxf3 {[%clk 0:00:46]} 29. Qd2 {[%clk 0:00:15]}  Re6 {[%clk 0:00:43]} 30. Qa5+ {[%clk 0:00:15]}  Ke8 {[%clk 0:00:40]} 31. Rc1 {[%clk 0:00:13]}  f6 {[%clk 0:00:30]} 32. Qxa7 {[%clk 0:00:10]}  Ne4 {[%clk 0:00:26]} 33. Qa4+ {[%clk 0:00:05]}  Kf7 {[%clk 0:00:26]} 34. Qd4 {[%clk 0:00:04]}  Ng5 {[%clk 0:00:23]} 35. h4 {[%clk 0:00:04]}  Ne4 {[%clk 0:00:20]} 36. Qd5 {[%clk 0:00:02]}  Qg4 {[%clk 0:00:16]} 37. Kg2 {[%clk 0:00:01]}  Nxg3 {[%clk 0:00:15]} 38. fxg3 {[%clk 0:00:02]}  Qe4+ {[%clk 0:00:11]} 39. Qxe4 {[%clk 0:00:02]}  Rxe4 {[%clk 0:00:12]} 40. Rc2 {[%clk 0:00:03]}  Re1 {[%clk 0:00:12]} 41. b3 {[%clk 0:00:03]}  Ra1 {[%clk 0:00:12]} 42. Re2 {[%clk 0:00:02]}  f5 {[%clk 0:00:12]} 43. Kf3 {[%clk 0:00:03]}  Kf6 {[%clk 0:00:12]} 44. Kg2 {[%clk 0:00:02]}  Bd6 {[%clk 0:00:12]} 45. Rd2 {[%clk 0:00:03]}  Be5 {[%clk 0:00:13]} 46. Rc2 {[%clk 0:00:03]}  Ke6 {[%clk 0:00:11]} 47. Rc6+ {[%clk 0:00:03]}  Bd6 {[%clk 0:00:11]} 48. Rc2 {[%clk 0:00:03]}  g6 {[%clk 0:00:11]} 49. Re2+ {[%clk 0:00:04]}  Kf6 {[%clk 0:00:12]} 50. Rd2 {[%clk 0:00:05]}  Be5 {[%clk 0:00:12]} 51. Rc2 {[%clk 0:00:05]}  Rd1 {[%clk 0:00:13]} 52. Rc6+ {[%clk 0:00:06]}  Bd6 {[%clk 0:00:13]} 53. Rc2 {[%clk 0:00:06]}  Rd3 {[%clk 0:00:14]} 54. Re2 {[%clk 0:00:06]}  Rxg3+ {[%clk 0:00:14]} 55. Kf2 {[%clk 0:00:07]}  f4 {[%clk 0:00:14]} 56. Rd2 {[%clk 0:00:08]}  Bc5+ {[%clk 0:00:14]} 57. Kf1 {[%clk 0:00:08]}  Rg1+ {[%clk 0:00:14]} 58. Ke2 {[%clk 0:00:08]}  Rg2+ {[%clk 0:00:15]} 59. Kd3 {[%clk 0:00:09]}  Rxd2+ {[%clk 0:00:14]} 60. Kxd2 {[%clk 0:00:10]}  Ke5 {[%clk 0:00:15]} 61. Kc3 {[%clk 0:00:10]}  f3 {[%clk 0:00:15]} 62. Kd3 {[%clk 0:00:10]}  Kf4 {[%clk 0:00:15]} 63. a4 {[%clk 0:00:10]}  Bb4 {[%clk 0:00:15]} 64. Kc4 {[%clk 0:00:10]}  Be1 {[%clk 0:00:15]} 65. b4 {[%clk 0:00:10]}  Bxb4 {[%clk 0:00:15]} 66. Kxb4 {[%clk 0:00:11]}  f2 {[%clk 0:00:16]} 67. a5 {[%clk 0:00:11]}  f1=Q {[%clk 0:00:17]} 68. a6 {[%clk 0:00:12]}  Qxa6 {[%clk 0:00:17]} 69. h5 {[%clk 0:00:12]}  gxh5 {[%clk 0:00:17]} 0-1

[Event "December 5 Late 2023"]
[Site "https://www.chess.com"]
[Date "2023.12.05"]
[Round "1"]
[White "Shapiro, Daniel"]
[Black "Dyachuk, Artem"]
[Result "0-1"]
[Board "134"]
[TimeControl "180+1"]
[WhiteFideId "2001780"]
[BlackFideId "34107924"]
[WhiteElo "2290"]
[BlackElo "2601"]
[WhiteTeam "USA"]
[BlackTeam "UKR"]
[WhiteClock "0:00:00"]
[BlackClock "0:00:36"]

1. d4 {[%clk 0:02:49]}  Nf6 {[%clk 0:02:58]} 2. c4 {[%clk 0:02:47]}  c6 {[%clk 0:02:56]} 3. Nf3 {[%clk 0:02:45]}  d5 {[%clk 0:02:55]} 4. Qb3 {[%clk 0:02:46]}  dxc4 {[%clk 0:02:52]} 5. Qxc4 {[%clk 0:02:45]}  Bf5 {[%clk 0:02:52]} 6. Nc3 {[%clk 0:02:45]}  e6 {[%clk 0:02:49]} 7. g3 {[%clk 0:02:44]}  Nbd7 {[%clk 0:02:49]} 8. Qb3 {[%clk 0:02:41]}  Qc8 {[%clk 0:02:46]} 9. Bg2 {[%clk 0:02:38]}  Be7 {[%clk 0:02:39]} 10. O-O {[%clk 0:02:35]}  O-O {[%clk 0:02:38]} 11. Bf4 {[%clk 0:02:25]}  Ne4 {[%clk 0:02:29]} 12. Rac1 {[%clk 0:02:15]}  Nb6 {[%clk 0:02:27]} 13. Ne5 {[%clk 0:02:07]}  Nd6 {[%clk 0:02:20]} 14. e4 {[%clk 0:02:02]}  Bg6 {[%clk 0:02:16]} 15. Nxg6 {[%clk 0:01:58]}  hxg6 {[%clk 0:02:17]} 16. d5 {[%clk 0:01:49]}  exd5 {[%clk 0:02:10]} 17. Nxd5 {[%clk 0:01:40]}  Nxd5 {[%clk 0:02:05]} 18. exd5 {[%clk 0:01:40]}  c5 {[%clk 0:02:06]} 19. Rfe1 {[%clk 0:01:40]}  Nf5 {[%clk 0:01:55]} 20. d6 {[%clk 0:01:18]}  Bxd6 {[%clk 0:01:32]} 21. Bxb7 {[%clk 0:01:14]}  Qc7 {[%clk 0:01:33]} 22. Bxd6 {[%clk 0:01:10]}  Qxd6 {[%clk 0:01:33]} 23. Bxa8 {[%clk 0:01:08]}  Rxa8 {[%clk 0:01:33]} 24. Qf3 {[%clk 0:01:00]}  Rb8 {[%clk 0:01:31]} 25. b3 {[%clk 0:00:58]}  Nd4 {[%clk 0:01:31]} 26. Qe4 {[%clk 0:00:59]}  Qf6 {[%clk 0:01:25]} 27. f4 {[%clk 0:00:56]}  Qb6 {[%clk 0:01:14]} 28. Rc4 {[%clk 0:00:49]}  Rd8 {[%clk 0:01:08]} 29. Kg2 {[%clk 0:00:43]}  Qa5 {[%clk 0:01:06]} 30. Rd1 {[%clk 0:00:12]}  Qxa2+ {[%clk 0:00:55]} 31. Kh3 {[%clk 0:00:12]}  Qxb3 {[%clk 0:00:51]} 32. Qd3 {[%clk 0:00:13]}  Qb6 {[%clk 0:00:48]} 33. Rdc1 {[%clk 0:00:12]}  Qe6+ {[%clk 0:00:46]} 34. Kg2 {[%clk 0:00:10]}  Qd5+ {[%clk 0:00:46]} 35. Kf2 {[%clk 0:00:10]}  Qh5 {[%clk 0:00:45]} 36. h4 {[%clk 0:00:09]}  Rb8 {[%clk 0:00:38]} 37. Qc3 {[%clk 0:00:00]}  Qe2+ {[%clk 0:00:36]} 0-1

[Event "December 5 Late 2023"]
[Site "https://www.chess.com"]
[Date "2023.12.05"]
[Round "1"]
[White "Mis, Mieszko"]
[Black "Clarke, Matthew"]
[Result "1-0"]
[Board "137"]
[TimeControl "180+1"]
[WhiteFideId "1196448"]
[BlackFideId "3227804"]
[WhiteElo "2599"]
[BlackElo "2274"]
[WhiteTeam "POL"]
[BlackTeam "AUS"]
[WhiteClock "0:01:48"]
[BlackClock "0:00:00"]

1. g3 {[%clk 0:03:00]}  d5 {[%clk 0:02:59]} 2. Bg2 {[%clk 0:03:00]}  e5 {[%clk 0:02:58]} 3. d3 {[%clk 0:02:59]}  Nf6 {[%clk 0:02:55]} 4. Nf3 {[%clk 0:02:58]}  Bd6 {[%clk 0:02:54]} 5. c4 {[%clk 0:02:54]}  c6 {[%clk 0:02:51]} 6. O-O {[%clk 0:02:53]}  O-O {[%clk 0:02:49]} 7. cxd5 {[%clk 0:02:53]}  cxd5 {[%clk 0:02:48]} 8. Nc3 {[%clk 0:02:53]}  Nc6 {[%clk 0:02:37]} 9. Bg5 {[%clk 0:02:53]}  Be6 {[%clk 0:02:34]} 10. Nd2 {[%clk 0:02:52]}  Be7 {[%clk 0:02:32]} 11. Rc1 {[%clk 0:02:49]}  h6 {[%clk 0:02:26]} 12. Bxf6 {[%clk 0:02:48]}  Bxf6 {[%clk 0:02:26]} 13. Qb3 {[%clk 0:02:37]}  Nd4 {[%clk 0:02:15]} 14. Qd1 {[%clk 0:02:31]}  Qd7 {[%clk 0:02:06]} 15. Nb3 {[%clk 0:02:25]}  Nxb3 {[%clk 0:01:52]} 16. Qxb3 {[%clk 0:02:25]}  Rfd8 {[%clk 0:01:22]} 17. Qa4 {[%clk 0:02:18]}  Qe7 {[%clk 0:00:23]} 18. Rfd1 {[%clk 0:02:12]}  a6 {[%clk 0:00:21]} 19. Qa5 {[%clk 0:02:10]}  Rac8 {[%clk 0:00:19]} 20. Nxd5 {[%clk 0:02:06]}  Bxd5 {[%clk 0:00:14]} 21. Rxc8 {[%clk 0:02:07]}  Rxc8 {[%clk 0:00:13]} 22. Qxd5 {[%clk 0:02:03]}  Rc2 {[%clk 0:00:13]} 23. Bf3 {[%clk 0:02:03]}  Qb4 {[%clk 0:00:12]} 24. b3 {[%clk 0:01:54]}  Rxa2 {[%clk 0:00:11]} 25. Rc1 {[%clk 0:01:54]}  g6 {[%clk 0:00:04]} 26. Rc7 {[%clk 0:01:49]}  Qf8 {[%clk 0:00:00]} 27. Qxb7 {[%clk 0:01:48]} 1-0

[Event "December 5 Late 2023"]
[Site "https://www.chess.com"]
[Date "2023.12.05"]
[Round "1"]
[White "Cardozo Munar, Carlos Eduardo"]
[Black "Ismagilov, Damir"]
[Result "1/2-1/2"]
[Board "138"]
[TimeControl "180+1"]
[WhiteFideId "4409477"]
[BlackFideId "34199982"]
[WhiteElo "2266"]
[BlackElo "2596"]
[WhiteTeam "COL"]
[BlackTeam "RUS"]
[WhiteClock "0:00:15"]
[BlackClock "0:00:12"]

1. e4 {[%clk 0:02:44]}  c5 {[%clk 0:02:59]} 2. Nf3 {[%clk 0:02:44]}  e6 {[%clk 0:02:59]} 3. Nc3 {[%clk 0:02:44]}  Nc6 {[%clk 0:02:58]} 4. d4 {[%clk 0:02:44]}  cxd4 {[%clk 0:02:58]} 5. Nxd4 {[%clk 0:02:44]}  a6 {[%clk 0:02:54]} 6. Be2 {[%clk 0:02:44]}  Qc7 {[%clk 0:02:50]} 7. O-O {[%clk 0:02:40]}  Nf6 {[%clk 0:02:33]} 8. h3 {[%clk 0:02:40]}  Nxd4 {[%clk 0:02:28]} 9. Qxd4 {[%clk 0:02:40]}  Bc5 {[%clk 0:02:27]} 10. Qd3 {[%clk 0:02:36]}  b5 {[%clk 0:02:17]} 11. Bg5 {[%clk 0:02:35]}  Bb7 {[%clk 0:02:15]} 12. Bxf6 {[%clk 0:02:33]}  gxf6 {[%clk 0:02:16]} 13. Rad1 {[%clk 0:02:33]}  Rd8 {[%clk 0:02:09]} 14. a4 {[%clk 0:02:29]}  b4 {[%clk 0:02:07]} 15. Na2 {[%clk 0:02:29]}  Rg8 {[%clk 0:01:57]} 16. Bf3 {[%clk 0:02:29]}  Ke7 {[%clk 0:01:51]} 17. Kh1 {[%clk 0:02:23]}  Qb6 {[%clk 0:01:46]} 18. Rd2 {[%clk 0:02:10]}  a5 {[%clk 0:01:45]} 19. Rfd1 {[%clk 0:02:10]}  Bc6 {[%clk 0:01:32]} 20. e5 {[%clk 0:01:58]}  fxe5 {[%clk 0:01:19]} 21. Bxc6 {[%clk 0:01:56]}  Qxc6 {[%clk 0:01:19]} 22. f3 {[%clk 0:01:52]}  f5 {[%clk 0:01:15]} 23. b3 {[%clk 0:01:51]}  Rg7 {[%clk 0:01:10]} 24. Qc4 {[%clk 0:01:50]}  Bd4 {[%clk 0:01:02]} 25. Rxd4 {[%clk 0:01:23]}  exd4 {[%clk 0:00:59]} 26. Qxd4 {[%clk 0:01:24]}  Rdg8 {[%clk 0:00:58]} 27. Rd2 {[%clk 0:01:24]}  Kd8 {[%clk 0:00:36]} 28. c4 {[%clk 0:01:23]}  bxc3 {[%clk 0:00:35]} 29. Nxc3 {[%clk 0:01:23]}  Ke8 {[%clk 0:00:33]} 30. Nb5 {[%clk 0:01:20]}  Re7 {[%clk 0:00:30]} 31. Nd6+ {[%clk 0:01:11]}  Kd8 {[%clk 0:00:31]} 32. Kh2 {[%clk 0:01:04]}  Qc7 {[%clk 0:00:29]} 33. f4 {[%clk 0:00:56]}  Qc6 {[%clk 0:00:24]} 34. Qa7 {[%clk 0:00:53]}  Reg7 {[%clk 0:00:23]} 35. Qxa5+ {[%clk 0:00:33]}  Ke7 {[%clk 0:00:21]} 36. g4 {[%clk 0:00:14]}  fxg4 {[%clk 0:00:21]} 37. Qb4 {[%clk 0:00:14]}  g3+ {[%clk 0:00:20]} 38. Kg1 {[%clk 0:00:15]}  Qc1+ {[%clk 0:00:15]} 39. Kg2 {[%clk 0:00:14]}  Qc6+ {[%clk 0:00:16]} 40. Kg1 {[%clk 0:00:14]}  Kf6 {[%clk 0:00:13]} 41. Qd4+ {[%clk 0:00:14]}  Ke7 {[%clk 0:00:12]} 42. Qb4 {[%clk 0:00:15]} 1/2-1/2

[Event "December 5 Late 2023"]
[Site "https://www.chess.com"]
[Date "2023.12.05"]
[Round "1"]
[White "Palmer, Reegan"]
[Black "Chor, Kevin"]
[Result "0-1"]
[Board "142"]
[TimeControl "180+1"]
[WhiteFideId "14322145"]
[BlackFideId "2090740"]
[WhiteElo "2251"]
[BlackElo "2591"]
[WhiteTeam "RSA"]
[BlackTeam "USA"]
[WhiteClock "0:00:01"]
[BlackClock "0:00:41"]

1. e4 {[%clk 0:03:00]}  c5 {[%clk 0:02:59]} 2. Nf3 {[%clk 0:03:00]}  Nc6 {[%clk 0:03:00]} 3. d3 {[%clk 0:03:00]}  g6 {[%clk 0:03:00]} 4. g3 {[%clk 0:03:00]}  Bg7 {[%clk 0:03:00]} 5. Bg2 {[%clk 0:03:01]}  Rb8 {[%clk 0:03:01]} 6. c3 {[%clk 0:03:00]}  Nf6 {[%clk 0:03:00]} 7. Qe2 {[%clk 0:03:00]}  O-O {[%clk 0:03:00]} 8. O-O {[%clk 0:03:01]}  d5 {[%clk 0:02:54]} 9. Nbd2 {[%clk 0:02:56]}  e5 {[%clk 0:02:49]} 10. Re1 {[%clk 0:02:52]}  d4 {[%clk 0:02:49]} 11. Nf1 {[%clk 0:02:43]}  b5 {[%clk 0:02:48]} 12. h4 {[%clk 0:02:41]}  Ba6 {[%clk 0:02:41]} 13. N1h2 {[%clk 0:02:37]}  c4 {[%clk 0:02:32]} 14. cxd4 {[%clk 0:02:26]}  exd4 {[%clk 0:02:23]} 15. e5 {[%clk 0:02:23]}  Nd5 {[%clk 0:02:18]} 16. Bg5 {[%clk 0:02:13]}  Qd7 {[%clk 0:02:08]} 17. a4 {[%clk 0:01:58]}  Ncb4 {[%clk 0:01:48]} 18. axb5 {[%clk 0:01:41]}  cxd3 {[%clk 0:01:46]} 19. Qd2 {[%clk 0:01:36]}  Bxb5 {[%clk 0:01:45]} 20. Nxd4 {[%clk 0:01:36]}  Rfc8 {[%clk 0:01:34]} 21. Rac1 {[%clk 0:01:21]}  a5 {[%clk 0:01:30]} 22. e6 {[%clk 0:00:58]}  fxe6 {[%clk 0:01:30]} 23. Nxe6 {[%clk 0:00:59]}  Nc2 {[%clk 0:01:24]} 24. Nxg7 {[%clk 0:00:45]}  Kxg7 {[%clk 0:01:18]} 25. Re5 {[%clk 0:00:24]}  Ncb4 {[%clk 0:01:18]} 26. Rce1 {[%clk 0:00:23]}  Re8 {[%clk 0:01:16]} 27. Rxe8 {[%clk 0:00:11]}  Rxe8 {[%clk 0:01:16]} 28. Rxe8 {[%clk 0:00:11]}  Qxe8 {[%clk 0:01:17]} 29. Ng4 {[%clk 0:00:12]}  Qe2 {[%clk 0:01:11]} 30. Bh6+ {[%clk 0:00:11]}  Kf7 {[%clk 0:01:08]} 31. Qg5 {[%clk 0:00:07]}  Qe1+ {[%clk 0:00:57]} 32. Kh2 {[%clk 0:00:07]}  Qe6 {[%clk 0:00:55]} 33. Ne5+ {[%clk 0:00:06]}  Ke8 {[%clk 0:00:55]} 34. Bh3 {[%clk 0:00:06]}  Qe7 {[%clk 0:00:56]} 35. Qg4 {[%clk 0:00:06]}  Qxe5 {[%clk 0:00:56]} 36. Qc8+ {[%clk 0:00:05]}  Ke7 {[%clk 0:00:46]} 37. Bf8+ {[%clk 0:00:05]}  Kf7 {[%clk 0:00:45]} 38. Bh6 {[%clk 0:00:06]}  Be8 {[%clk 0:00:42]} 39. Qb7+ {[%clk 0:00:04]}  Qe7 {[%clk 0:00:42]} 40. Qb5 {[%clk 0:00:01]}  Bxb5 {[%clk 0:00:41]} 0-1

[Event "December 5 Late 2023"]
[Site "https://www.chess.com"]
[Date "2023.12.05"]
[Round "1"]
[White "Ezat, Mohamed"]
[Black "Chlpik, Martin"]
[Result "0-1"]
[Board "145"]
[TimeControl "180+1"]
[WhiteFideId "10600906"]
[BlackFideId "14923351"]
[WhiteElo "2589"]
[BlackElo "2243"]
[WhiteTeam "EGY"]
[BlackTeam "SVK"]
[WhiteClock "0:00:01"]
[BlackClock "0:00:13"]

1. d4 {[%clk 0:02:58]}  Nf6 {[%clk 0:02:59]} 2. c4 {[%clk 0:02:57]}  c5 {[%clk 0:02:59]} 3. d5 {[%clk 0:02:57]}  e6 {[%clk 0:03:00]} 4. Nc3 {[%clk 0:02:57]}  exd5 {[%clk 0:03:00]} 5. cxd5 {[%clk 0:02:57]}  d6 {[%clk 0:03:00]} 6. e4 {[%clk 0:02:58]}  g6 {[%clk 0:02:59]} 7. f4 {[%clk 0:02:59]}  Bg7 {[%clk 0:03:00]} 8. Bb5+ {[%clk 0:02:59]}  Nfd7 {[%clk 0:03:00]} 9. Be2 {[%clk 0:02:59]}  O-O {[%clk 0:02:59]} 10. Nf3 {[%clk 0:02:59]}  a6 {[%clk 0:02:55]} 11. a4 {[%clk 0:02:59]}  Re8 {[%clk 0:02:53]} 12. O-O {[%clk 0:02:58]}  Qc7 {[%clk 0:02:51]} 13. Kh1 {[%clk 0:02:56]}  c4 {[%clk 0:02:51]} 14. e5 {[%clk 0:02:53]}  dxe5 {[%clk 0:02:51]} 15. d6 {[%clk 0:02:53]}  Qc6 {[%clk 0:02:37]} 16. fxe5 {[%clk 0:02:45]}  Nxe5 {[%clk 0:02:35]} 17. Nxe5 {[%clk 0:02:45]}  Bxe5 {[%clk 0:02:34]} 18. Nd5 {[%clk 0:02:45]}  Qxd6 {[%clk 0:02:32]} 19. Nf6+ {[%clk 0:02:45]}  Qxf6 {[%clk 0:02:14]} 20. Rxf6 {[%clk 0:02:41]}  Bxf6 {[%clk 0:02:14]} 21. Bxc4 {[%clk 0:02:34]}  Be6 {[%clk 0:02:14]} 22. Bxe6 {[%clk 0:02:22]}  Rxe6 {[%clk 0:02:15]} 23. Bh6 {[%clk 0:02:17]}  Nc6 {[%clk 0:01:50]} 24. g3 {[%clk 0:01:57]}  Rae8 {[%clk 0:01:21]} 25. Qb3 {[%clk 0:01:54]}  Re2 {[%clk 0:01:04]} 26. Rf1 {[%clk 0:01:38]}  Rxb2 {[%clk 0:00:55]} 27. Qd5 {[%clk 0:01:32]}  Ree2 {[%clk 0:00:41]} 28. Rd1 {[%clk 0:00:39]}  Rxh2+ {[%clk 0:00:37]} 29. Kg1 {[%clk 0:00:39]}  Rxh6 {[%clk 0:00:31]} 30. Qd6 {[%clk 0:00:38]}  Be5 {[%clk 0:00:24]} 31. Qd7 {[%clk 0:00:33]}  Rhh2 {[%clk 0:00:23]} 32. Rd3 {[%clk 0:00:22]}  Rhg2+ {[%clk 0:00:20]} 33. Kf1 {[%clk 0:00:22]}  Rbf2+ {[%clk 0:00:17]} 34. Ke1 {[%clk 0:00:22]}  Re2+ {[%clk 0:00:16]} 35. Kf1 {[%clk 0:00:20]}  Rgf2+ {[%clk 0:00:15]} 36. Kg1 {[%clk 0:00:20]}  Bd4 {[%clk 0:00:14]} 37. Rxd4 {[%clk 0:00:19]}  Nxd4 {[%clk 0:00:14]} 38. Qd8+ {[%clk 0:00:19]}  Kg7 {[%clk 0:00:14]} 39. Qxd4+ {[%clk 0:00:20]}  f6 {[%clk 0:00:14]} 40. Qd7+ {[%clk 0:00:20]}  Kh6 {[%clk 0:00:14]} 41. Qxb7 {[%clk 0:00:19]}  Rb2 {[%clk 0:00:14]} 42. Qh1+ {[%clk 0:00:17]}  Kg7 {[%clk 0:00:14]} 43. Qd5 {[%clk 0:00:14]}  Rfd2 {[%clk 0:00:14]} 44. Qd4 {[%clk 0:00:01]}  Rb1# {[%clk 0:00:13]} 0-1